[Event "28th Hit Open-A 2024"]
[Site "Nova Gorica"]
[Date "2024.01.27"]
[Round "3.1"]
[White "Berkes, Ferenc"]
[Black "Csonka, Balazs"]
[Result "1/2-1/2"]
[ECO "D50"]
[WhiteElo "2613"]
[BlackElo "2479"]
[Annotator "TA"]
[PlyCount "50"]
[EventDate "2024.01.22"]
[EventType "swiss"]
[EventCountry "SLO"]
[SourceTitle "playchess.com"]
[Source "ChessBase"]
[SourceQuality "1"]
[TimeControl "5400+30"]

{[%evp 14,50,22,11,24,19,31,13,20,27,31,19,16,12,17,11,14,10,13,13,17,15,15,10,22,0,0,0,0,0,0,0,0,0,0,0,0,0,0]} 1. d4 {[%emt 0:00:05]} Nf6 {[%emt 0:00:07]} 2. c4 {[%emt 0:00:06]} e6 {[%emt 0:00:05]} 3. Nf3 {[%emt 0:00:21]} d5 {[%emt 0:00:08]} 4. Nc3 {[%emt 0:00:24]} c5 {[%emt 0:00:15]} 5. cxd5 {[%emt 0:00:23]} cxd4 {[%emt 0:00:21]} 6. Qxd4 {[%emt 0:00:08]} exd5 {[%emt 0:00:10]} 7. Bg5 {[%emt 0:00:42]} Be7 {[%emt 0:00:15]} 8. e3 {[%emt 0:00:17]} O-O {[%emt 0:00:31]} 9. Be2 {[%emt 0:00:21]} h6 {[%emt 0:00:37]} 10. Bh4 {[%emt 0:00:58]} Be6 {[%emt 0:00:32]} 11. O-O {[%emt 0:00:09]} Nc6 {[%emt 0:00:05]} 12. Qd3 {[%emt 0:00:12]} Qb6 {[%emt 0:01:13] Die Stellung ist ausgeglichen.} 13. Bxf6 {[%emt 0:04:03]} (13. a3 {ist vielschichtiger.} d4 14. Nxd4 Rfd8 15. Na4) 13... Bxf6 {[%emt 0:00:09]} 14. Nxd5 {[%emt 0:00:06]} Bxd5 {[%emt 0:00:08]} 15. Qxd5 {[%emt 0:00:04]} Qxb2 {[%emt 0:00:20]} 16. Bc4 {[%emt 0:00:35]} Qa3 {[%emt 0:05:13]} 17. Rad1 {[%emt 0:01:07]} Na5 {[%emt 0:00:54]} 18. Bd3 {[%emt 0:01:36] Schwarz ist schwach auf den weissen Feldern} g6 {[%emt 0:04:27] Wehrt Qf5 ab} 19. Bxg6 {[%emt 0:03:54]} (19. Ne5 $5 Bxe5 20. Qxe5 $11) 19... Rad8 {[%emt 0:00:09]} 20. Qh5 {[%emt 0:00:16][%cal Oh5h6] [#] Qxh6! ist eine echte Drohung.} fxg6 {[%emt 0:00:10]} 21. Qxg6+ {[%emt 0:00:07]} Bg7 {[%emt 0:00:08]} 22. Qe6+ {[%emt 0:00:15]} Kh7 $1 {[%emt 0:01:25]} 23. Qe4+ {[%emt 0:00:31]} Kg8 {[%emt 0:00:22]} 24. Qe6+ {[%emt 0:00:23]} Kh7 $1 {[%emt 0:00:06]} 25. Qe4+ {[%emt 0:00:13]} Kg8 {[%emt 0:00:08] Hier war wenig los.   Gewichteter Fehlerwert: Weiß=0.03 (makellos) /Schwarz=0.02 (makellos) .  OK:         	Weiß=4     	Schwarz=8     Bester:       	Weiß=1     	Schwarz=2     Stark:        	---       	Schwarz=2} 1/2-1/2

[Event "28th Hit Open-A 2024"]
[Site "Nova Gorica"]
[Date "2024.01.27"]
[Round "3.2"]
[White "Kulkarni Bhakti"]
[Black "Sebenik, Matej"]
[Result "0-1"]
[ECO "A05"]
[WhiteElo "2364"]
[BlackElo "2536"]
[Annotator "TA"]
[PlyCount "118"]
[EventDate "2024.01.22"]
[EventType "swiss"]
[EventCountry "SLO"]
[SourceTitle "playchess.com"]
[Source "ChessBase"]
[SourceQuality "1"]
[TimeControl "5400+30"]

{[%evp 42,118,89,72,72,89,63,5,4,0,0,0,0,0,0,0,0,0,816,-342,115,127,111,0,14,0,0,0,0,0,0,-49,-59,-118,-122,-111,-113,-131,-126,-115,-115,-120,-123,-131,-15,-331,-312,-375,-374,-357,-291,-371,-358,-568,-558,-579,-579,-552,-508,-602,-602,-593,-591,-580,-564,-540,-541,-743,-732,-736,-733,-710,-685,-770,-741,-733,-720,-656,-615]} 1. Nf3 {[%emt 0:04:24]} Nf6 {[%emt 0:00:12]} 2. g3 {[%emt 0:00:40]} b5 {[%emt 0:00:26]} 3. Bg2 {[%emt 0:00:20]} Bb7 {[%emt 0:00:08]} 4. Na3 {[%emt 0:01:06]} a6 {[%emt 0:00:25]} 5. c4 {[%emt 0:00:26]} e6 {[%emt 0:00:06]} 6. b3 {[%emt 0:02:45] A05: Réti Opening: 1 Nf3 Nf6.} bxc4 {[%emt 0:01:06]} 7. bxc4 {[%emt 0:04:48]} c5 {[%emt 0:00:19]} 8. Rb1 {[%emt 0:01:02]} Ra7 {[%emt 0:00:16]} 9. O-O {[%emt 0:00:40]} Be7 {[%emt 0:00:52]} 10. d3 {[%emt 0:02:34]} O-O {[%emt 0:02:33]} 11. Bb2 $146 {[%emt 0:01:37]} ({Predecessor:} 11. e4 d6 12. Nc2 Nc6 13. Bd2 Ba8 14. Bc3 Nd7 15. Qd2 Bf6 16. Rb2 Rb7 17. Rxb7 Bxb7 {½-½ Banusz,T (2641)-Demchenko,A (2610) EU-Cup 36th Struga 2021 (6.2)}) 11... d6 {[%emt 0:05:24]} 12. Qd2 {[%emt 0:02:58]} Nbd7 {[%emt 0:07:11]} 13. Bc3 {[%emt 0:04:29]} Qa8 {[%emt 0:00:20]} 14. Rb2 {[%emt 0:04:39]} d5 {[%emt 0:17:49]} 15. cxd5 {[%emt 0:02:46]} exd5 {[%emt 0:13:48]} 16. Rfb1 {[%emt 0:03:21]} Bc6 {[%emt 0:08:53]} 17. Nh4 {[%emt 0:14:20]} g6 {[%emt 0:05:15]} 18. Nc2 {[%emt 0:10:54]} Re8 {[%emt 0:09:25]} 19. d4 {[%emt 0:10:32]} c4 {[%emt 0:00:05]} 20. Ne3 {[%emt 0:04:24]} Ba3 {[%emt 0:02:54]} 21. Nef5 {[%emt 0:01:49]} Ne4 {[%emt 0:21:38]} 22. Bxe4 {[%emt 0:02:33]} Rxe4 {[%emt 0:00:05]} (22... Bxb2 23. Qh6 gxf5 24. Nxf5 dxe4 25. Qg7#) 23. Nh6+ {[%emt 0:01:54]} Kf8 {[%emt 0:01:31]} 24. Bb4+ {[%emt 0:03:46]} (24. f3 $1 $14 Re8 25. Bb4+ Bxb4 26. Rxb4) 24... Bxb4 $11 {[%emt 0:00:04]} 25. Qxb4+ {[%emt 0:00:18]} Kg7 {[%emt 0:00:06]} 26. Qd6 {[%emt 0:02:06]} Re6 {[%emt 0:01:45]} (26... Kxh6 $6 27. Rb8 Nxb8 28. Rxb8 $16) 27. N6f5+ {[%emt 0:01:57]} gxf5 {[%emt 0:00:38]} 28. Nxf5+ {[%emt 0:00:03]} Kg6 {[%emt 0:00:40]} 29. Qf4 {[%emt 0:00:31]} Re4 $2 {[%emt 0:00:26][%mdl 8192]} (29... Qf8 $11 30. Rb8 Nxb8 31. Rxb8 Re8 (31... Be8 $2 32. Qg4+ Kf6 33. h4 $18)) 30. Qh6+ $2 {[%emt 0:00:44]} (30. Nh4+ $18 {is the precise move to win.} Kg7 31. Qg5+ Kf8 32. Nf5) 30... Kxf5 $16 {[%emt 0:00:03]} 31. f3 {[%emt 0:00:50]} Rxd4 {[%emt 0:00:22] [#]} 32. g4+ {[%emt 0:01:02]} (32. e3 $1 $16 {[%cal Re3d4]} Rd3 33. g4+ Ke5 34. f4+ Ke4 35. Qxh7+ Kxe3 36. Qh4) 32... Ke5 $11 {[%emt 0:00:37]} 33. Qe3+ {[%emt 0:00:47]} Kd6 {[%emt 0:00:48]} (33... Re4 34. fxe4 Bb5 (34... dxe4 $2 35. Rb8 $18) (34... d4 35. Qg3+ Kxe4 36. Rb8 $16) 35. exd5+ Kd6 36. Rb4 Qxd5 37. Qxa7 $18) 34. Qxd4 {[%emt 0:00:04]} Rb7 {[%emt 0:00:34]} 35. Qf4+ {[%emt 0:01:08]} Ke7 {[%emt 0:00:10]} 36. Rxb7 {[%emt 0:00:30]} (36. Qe3+ $11 {feels stronger.} Kd8 37. Qg5+ Kc7 38. Qf4+ Kc8 39. Rxb7 (39. Qxf7 $2 Qa7+ 40. Kg2 Rxb2 $19) 39... Bxb7 40. Qxf7 Qa7+ 41. Kf1) 36... Bxb7 $15 {[%emt 0:00:01]} 37. Qc7 {[%emt 0:00:21]} (37. Qe3+ $15 Kd8 38. h4) 37... Bc6 $17 {[%emt 0:00:45]} 38. Rb6 {[%emt 0:00:27]} Bb5 {[%emt 0:00:51]} 39. a4 {[%emt 0:00:15]} Qd8 {[%emt 0:00:49]} 40. Qd6+ {[%emt 0:00:38]} Ke8 {[%emt 0:00:01]} 41. Rb7 {[%emt 0:00:31]} Bxa4 {[%emt 0:00:11]} 42. Qxd5 {[%emt 0:01:09]} Qc8 {[%emt 0:00:23]} (42... Bb5 $17 {...Qf6 would now be deadly.} 43. Qd4 Qe7) 43. Rb4 $2 {[%emt 0:01:49][%mdl 8192]} (43. Ra7 $1 $11 {and White has nothing to worry.} Qc5+ 44. Qxc5 Nxc5 45. Rc7) 43... Bb5 $19 {[%emt 0:00:14]} 44. Kg2 {[%emt 0:00:49]} Qc5 {[%emt 0:00:10]} 45. Qe4+ {[%emt 0:00:03]} Qe5 {[%emt 0:00:27]} 46. Qc2 {[%emt 0:00:55]} Nf6 {[%emt 0:00:28]} 47. e4 {[%emt 0:01:18]} (47. Rb1 $142) 47... Nd7 $19 {[%emt 0:00:47]} 48. Rxc4 {[%emt 0:01:05]} Bxc4 {[%emt 0:00:04]} 49. Qxc4 {[%emt 0:00:04]} Nc5 {[%emt 0:00:59]} 50. Qb4 {[%emt 0:00:18]} Nd3 {[%emt 0:01:06]} 51. Qc4 {[%emt 0:00:37]} Nf4+ {[%emt 0:00:48]} 52. Kf2 {[%emt 0:00:05]} Ne6 {[%emt 0:00:50]} 53. Qxa6 {[%emt 0:00:32]} Qxh2+ {[%emt 0:00:04]} 54. Ke3 {[%emt 0:00:15]} Qg1+ {[%emt 0:00:06]} 55. Kd2 {[%emt 0:00:28]} Ke7 {[%emt 0:00:52]} 56. Qb7+ {[%emt 0:00:46]} Kf6 {[%emt 0:00:47]} 57. Qa8 {[%emt 0:01:38]} Qf2+ {[%emt 0:00:08]} 58. Kc1 {[%emt 0:00:03]} Qe3+ {[%emt 0:00:15]} (58... Qxf3 $2 {loses.} 59. e5+ Ke7 60. Qxf3 $18) 59. Kb1 {[%emt 0:00:10]} Kg7 {[%emt 0:00:14]} (59... Qxf3 $2 {perishes.} 60. e5+ Kg7 61. Qxf3 $18) 0-1

[Event "28th Hit Open-A 2024"]
[Site "Nova Gorica"]
[Date "2024.01.27"]
[Round "3.3"]
[White "Gricnik, Tine"]
[Black "Bodrogi, Bendeguz"]
[Result "0-1"]
[ECO "D30"]
[WhiteElo "1758"]
[BlackElo "2261"]
[Annotator "RC"]
[PlyCount "88"]
[EventDate "2024.01.22"]
[EventType "swiss"]
[EventCountry "SLO"]
[SourceTitle "playchess.com"]
[Source "ChessBase"]
[SourceQuality "1"]
[TimeControl "5400+30"]

1. d4 {[%emt 0:00:03]} d5 {[%emt 0:00:35]} 2. c4 {[%emt 0:00:08]} e6 {[%emt 0:00:08]} 3. Nf3 {[%emt 0:00:07]} a6 {[%emt 0:00:09]} 4. g3 {[%emt 0:04:39]} dxc4 {[%emt 0:00:18]} 5. Bg2 {[%emt 0:03:53]} c5 {[%emt 0:05:37]} 6. Qc2 {[%emt 0:03:45]} b5 {[%emt 0:19:16]} 7. a4 {[%emt 0:01:54]} Bb7 {[%emt 0:00:52]} 8. axb5 {[%emt 0:01:20]} axb5 {[%emt 0:00:09]} 9. Rxa8 {[%emt 0:00:18]} Bxa8 {[%emt 0:00:07]} 10. dxc5 {[%emt 0:00:56]} Bxc5 {[%emt 0:04:17]} 11. b3 {[%emt 0:00:55]} Qb6 {[%emt 0:01:03]} 12. O-O {[%emt 0:02:27]} cxb3 {[%emt 0:01:40]} 13. Qxb3 {[%emt 0:00:55]} Bd5 {[%emt 0:10:53]} 14. Qb2 {[%emt 0:00:20]} Nf6 {[%emt 0:00:08]} 15. Nc3 {[%emt 0:02:29]} Bc6 {[%emt 0:00:26]} 16. Ne5 {[%emt 0:02:59]} Bxg2 {[%emt 0:00:50]} 17. Kxg2 {[%emt 0:03:18]} b4 {[%emt 0:00:13]} 18. Na4 {[%emt 0:01:07]} Qb7+ {[%emt 0:00:52]} 19. f3 {[%emt 0:01:49]} Be7 {[%emt 0:00:09]} 20. Nd3 {[%emt 0:00:43]} O-O {[%emt 0:01:29]} 21. Bd2 {[%emt 0:00:19]} Na6 {[%emt 0:03:24]} 22. Rc1 {[%emt 0:02:04]} Rb8 {[%emt 0:11:05]} 23. Nac5 {[%emt 0:04:01]} Nxc5 {[%emt 0:00:13]} 24. Nxc5 {[%emt 0:00:08]} Qb5 {[%emt 0:04:06]} 25. Nd3 {[%emt 0:01:18]} Nd5 {[%emt 0:04:55]} 26. Qb3 {[%emt 0:01:40]} h6 {[%emt 0:08:42]} 27. e4 {[%emt 0:03:28]} Nc3 {[%emt 0:02:01]} 28. Nf4 {[%emt 0:09:52]} Bf6 {[%emt 0:02:41]} 29. Bxc3 {[%emt 0:01:26]} Bxc3 {[%emt 0:03:54]} 30. Rc2 {[%emt 0:00:27]} Rc8 {[%emt 0:05:15]} 31. Ne2 {[%emt 0:02:40]} Qd3 {[%emt 0:01:14]} 32. Nc1 {[%emt 0:02:41]} Qd1 {[%emt 0:00:52]} 33. Na2 {[%emt 0:00:43]} Rd8 {[%emt 0:00:07]} 34. Rxc3 {[%emt 0:01:12]} bxc3 {[%emt 0:00:18]} 35. Qxd1 {[%emt 0:00:06]} Rxd1 {[%emt 0:00:04]} 36. Nxc3 {[%emt 0:00:06]} Rd2+ {[%emt 0:00:05]} 37. Kh3 {[%emt 0:01:55]} Rd3 {[%emt 0:00:06]} 38. Nb5 {[%emt 0:00:20]} Rxf3 {[%emt 0:00:09]} 39. Kg4 {[%emt 0:00:05]} Rd3 {[%emt 0:00:09]} 40. h4 {[%emt 0:00:28]} h5+ {[%emt 0:00:28]} 41. Kf4 {[%emt 0:00:30]} e5+ {[%emt 0:00:09]} 42. Kxe5 {[%emt 0:00:12]} Rxg3 {[%emt 0:00:07]} 43. Nd6 {[%emt 0:00:14]} Rg4 {[%emt 0:00:22]} 44. Nf5 {[%emt 0:00:17]} Kf8 {[%emt 0:01:09]} 0-1

[Event "28th Hit Open-A 2024"]
[Site "Nova Gorica"]
[Date "2024.01.27"]
[Round "3.4"]
[White "Gaal, Zsoka"]
[Black "Budai, Leonardo"]
[Result "1-0"]
[ECO "D02"]
[WhiteElo "2341"]
[BlackElo "1847"]
[Annotator "RC"]
[PlyCount "47"]
[EventDate "2024.01.22"]
[EventType "swiss"]
[EventCountry "SLO"]
[SourceTitle "playchess.com"]
[Source "ChessBase"]
[SourceQuality "1"]
[TimeControl "5400+30"]

1. Nf3 {[%emt 0:00:11]} d5 {[%emt 0:00:11]} 2. g3 {[%emt 0:00:09]} Nf6 {[%emt 0:00:11]} 3. Bg2 {[%emt 0:00:09]} c5 {[%emt 0:00:40]} 4. O-O {[%emt 0:00:13]} Nc6 {[%emt 0:00:44]} 5. d4 {[%emt 0:00:35]} cxd4 {[%emt 0:06:08]} 6. Nxd4 {[%emt 0:00:11]} e5 {[%emt 0:00:20]} 7. Nxc6 {[%emt 0:00:53]} bxc6 {[%emt 0:00:02]} 8. c4 {[%emt 0:00:12]} Be7 {[%emt 0:31:20]} 9. Nc3 {[%emt 0:01:22]} Bb7 {[%emt 0:07:18]} 10. cxd5 {[%emt 0:21:55]} Nxd5 {[%emt 0:16:57]} 11. Qc2 {[%emt 0:02:45]} Qb6 {[%emt 0:05:15]} 12. b3 {[%emt 0:11:32]} Nxc3 {[%emt 0:06:26]} 13. Qxc3 {[%emt 0:00:11]} O-O {[%emt 0:00:13]} 14. Be3 {[%emt 0:07:40]} Qb5 {[%emt 0:04:03]} 15. Qc2 {[%emt 0:01:56]} Rac8 {[%emt 0:04:33]} 16. Rfd1 {[%emt 0:06:54]} Rc7 {[%emt 0:05:42]} 17. a4 {[%emt 0:08:44]} Qb4 {[%emt 0:01:51]} 18. Bd2 {[%emt 0:01:23]} Qb6 {[%emt 0:01:58]} 19. Be4 {[%emt 0:02:40]} g6 {[%emt 0:02:57]} 20. a5 {[%emt 0:00:32]} Qc5 {[%emt 0:01:33]} 21. Qb2 {[%emt 0:01:53]} f6 {[%emt 0:01:18]} 22. Be3 {[%emt 0:00:40]} Qb4 {[%emt 0:01:17]} 23. Ra4 {[%emt 0:00:09]} Qb5 {[%emt 0:00:22]} 24. Bd3 {[%emt 0:00:10]} 1-0

[Event "28th Hit Open-A 2024"]
[Site "Nova Gorica"]
[Date "2024.01.27"]
[Round "3.5"]
[White "Basso, Pier Luigi"]
[Black "Davies, Nigel R"]
[Result "1-0"]
[ECO "D37"]
[WhiteElo "2482"]
[BlackElo "2349"]
[Annotator "RC"]
[PlyCount "89"]
[EventDate "2024.01.22"]
[EventType "swiss"]
[EventCountry "SLO"]
[SourceTitle "playchess.com"]
[Source "ChessBase"]
[SourceQuality "1"]
[TimeControl "5400+30"]

1. d4 {[%emt 0:04:38]} d5 {[%emt 0:00:13]} 2. c4 {[%emt 0:00:15]} e6 {[%emt 0:00:08]} 3. Nc3 {[%emt 0:00:21]} a6 {[%emt 0:00:06]} 4. cxd5 {[%emt 0:00:19]} exd5 {[%emt 0:00:07]} 5. Nf3 {[%emt 0:00:05]} Nf6 {[%emt 0:00:13]} 6. Qb3 {[%emt 0:00:21]} Be7 {[%emt 0:01:19]} 7. Bf4 {[%emt 0:01:19]} c6 {[%emt 0:01:07]} 8. e3 {[%emt 0:00:12]} Nbd7 {[%emt 0:00:06]} 9. h3 {[%emt 0:01:16]} Nf8 {[%emt 0:04:31]} 10. Bd3 {[%emt 0:00:21]} Ng6 {[%emt 0:00:11]} 11. Bh2 {[%emt 0:00:31]} Bd6 {[%emt 0:00:24]} 12. Bxd6 {[%emt 0:00:36]} Qxd6 {[%emt 0:00:08]} 13. O-O-O {[%emt 0:02:23]} O-O {[%emt 0:01:24]} 14. Kb1 {[%emt 0:00:25]} Qe7 {[%emt 0:07:40]} 15. Qc2 {[%emt 0:01:34]} Re8 {[%emt 0:02:21]} 16. g4 {[%emt 0:00:40]} Bd7 {[%emt 0:10:20]} 17. Rdg1 {[%emt 0:05:42]} Rac8 {[%emt 0:06:08]} 18. g5 {[%emt 0:01:34]} Ne4 {[%emt 0:00:12]} 19. h4 {[%emt 0:06:39]} Bf5 {[%emt 0:05:55]} 20. h5 {[%emt 0:00:25]} Nf8 {[%emt 0:00:07]} 21. Ne5 {[%emt 0:03:21]} Nd7 {[%emt 0:00:43]} 22. f4 {[%emt 0:06:20]} Nxe5 {[%emt 0:03:26]} 23. fxe5 {[%emt 0:02:29]} Nxc3+ {[%emt 0:00:36]} 24. Qxc3 {[%emt 0:00:12]} Qd7 {[%emt 0:01:07]} 25. Rf1 {[%emt 0:01:45]} Bxd3+ {[%emt 0:00:30]} 26. Qxd3 {[%emt 0:00:05]} c5 {[%emt 0:00:11]} 27. g6 {[%emt 0:02:04]} Rf8 {[%emt 0:02:43]} 28. gxh7+ {[%emt 0:02:38]} Kh8 {[%emt 0:00:06]} 29. Rhg1 {[%emt 0:03:18]} Qh3 {[%emt 0:05:48]} 30. dxc5 {[%emt 0:04:10]} Rxc5 {[%emt 0:02:03]} 31. Qd4 {[%emt 0:00:55]} Rc7 {[%emt 0:06:29]} 32. Qf4 {[%emt 0:12:40]} Qxh5 {[%emt 0:03:02]} 33. Qg3 {[%emt 0:02:15]} Qxh7+ {[%emt 0:08:04]} 34. Ka1 {[%emt 0:00:27]} Rc6 {[%emt 0:00:07]} 35. Qg2 {[%emt 0:01:45]} Kg8 {[%emt 0:09:38]} 36. Qxd5 {[%emt 0:01:57]} Qc2 {[%emt 0:00:31]} 37. a3 {[%emt 0:02:46]} Qc4 {[%emt 0:01:54]} 38. Qh1 {[%emt 0:02:21]} Re8 {[%emt 0:02:12]} 39. Rf4 {[%emt 0:00:41]} Qc2 {[%emt 0:02:08]} 40. Rh4 {[%emt 0:02:18]} Kf8 {[%emt 0:00:12]} 41. Rh8+ {[%emt 0:00:32]} Ke7 {[%emt 0:00:05]} 42. Qh4+ {[%emt 0:00:19]} Kd7 {[%emt 0:00:07]} 43. Qd4+ {[%emt 0:00:16]} Ke7 {[%emt 0:00:12]} 44. Qb4+ {[%emt 0:00:07]} Qc5 {[%emt 0:00:22]} 45. Qh4+ {[%emt 0:00:06]} 1-0

[Event "28th Hit Open-A 2024"]
[Site "Nova Gorica"]
[Date "2024.01.27"]
[Round "3.6"]
[White "Beliavsky, Alexander G"]
[Black "Ongut, Tamas Gunes"]
[Result "1-0"]
[ECO "E46"]
[WhiteElo "2475"]
[BlackElo "2310"]
[Annotator "RC"]
[PlyCount "55"]
[EventDate "2024.01.22"]
[EventType "swiss"]
[EventCountry "SLO"]
[SourceTitle "playchess.com"]
[Source "ChessBase"]
[SourceQuality "1"]
[TimeControl "5400+30"]

1. d4 {[%emt 0:00:05]} Nf6 {[%emt 0:00:46]} 2. c4 {[%emt 0:00:09]} e6 {[%emt 0:00:15]} 3. Nc3 {[%emt 0:01:14]} Bb4 {[%emt 0:01:04]} 4. e3 {[%emt 0:00:38]} O-O {[%emt 0:01:22]} 5. Nge2 {[%emt 0:04:07]} d5 {[%emt 0:03:17]} 6. a3 {[%emt 0:00:15]} Be7 {[%emt 0:00:07]} 7. cxd5 {[%emt 0:03:15]} exd5 {[%emt 0:00:13]} 8. g3 {[%emt 0:02:40]} Re8 {[%emt 0:09:45]} 9. Bg2 {[%emt 0:00:09]} c6 {[%emt 0:00:07]} 10. O-O {[%emt 0:00:16]} Bf5 {[%emt 0:00:29]} 11. f3 {[%emt 0:01:58]} Bf8 {[%emt 0:22:43]} 12. g4 {[%emt 0:01:25]} Be6 {[%emt 0:14:28]} 13. Nf4 {[%emt 0:06:06]} c5 {[%emt 0:05:14]} 14. dxc5 {[%emt 0:09:25]} Bxc5 {[%emt 0:00:10]} 15. g5 {[%emt 0:01:31]} Nfd7 {[%emt 0:00:48]} 16. Ncxd5 {[%emt 0:07:15]} Bxd5 {[%emt 0:17:33]} 17. Nxd5 {[%emt 0:00:45]} Nb6 {[%emt 0:00:05]} 18. f4 {[%emt 0:02:46]} Nc6 {[%emt 0:00:06]} 19. Qc2 {[%emt 0:04:06]} Nd4 {[%emt 0:02:49]} 20. exd4 {[%emt 0:19:19]} Bxd4+ {[%emt 0:00:08]} 21. Kh1 {[%emt 0:00:36]} Nxd5 {[%emt 0:00:13]} 22. Rd1 {[%emt 0:01:00]} Rc8 {[%emt 0:08:29]} 23. Qb3 {[%emt 0:01:53]} Re2 {[%emt 0:09:04]} 24. Bd2 {[%emt 0:04:08]} Rxg2 {[%emt 0:02:37]} 25. Kxg2 {[%emt 0:00:06]} Qd7 {[%emt 0:00:34]} 26. Qh3 {[%emt 0:08:17]} Nxf4+ {[%emt 0:00:33]} 27. Bxf4 {[%emt 0:00:28]} Rc2+ {[%emt 0:00:30]} 28. Rd2 {[%emt 0:00:50]} 1-0

[Event "28th Hit Open-A 2024"]
[Site "Nova Gorica"]
[Date "2024.01.27"]
[Round "3.7"]
[White "Drazic, Sinisa"]
[Black "Doric, Darko"]
[Result "1-0"]
[ECO "B40"]
[WhiteElo "2270"]
[BlackElo "2456"]
[Annotator "RC"]
[PlyCount "121"]
[EventDate "2024.01.22"]
[EventType "swiss"]
[EventCountry "SLO"]
[SourceTitle "playchess.com"]
[Source "ChessBase"]
[SourceQuality "1"]
[TimeControl "5400+30"]

1. c4 {[%emt 0:01:47]} e6 {[%emt 0:00:22]} 2. e4 {[%emt 0:00:14]} c5 {[%emt 0:01:26]} 3. Nc3 {[%emt 0:00:10]} Nc6 {[%emt 0:00:42]} 4. Nf3 {[%emt 0:00:01]} e5 {[%emt 0:01:59]} 5. g3 {[%emt 0:00:01]} d6 {[%emt 0:00:30]} 6. Bg2 {[%emt 0:00:06]} Be7 {[%emt 0:02:45]} 7. h3 {[%emt 0:03:20]} f5 {[%emt 0:01:51]} 8. d3 {[%emt 0:00:13]} Nf6 {[%emt 0:00:55]} 9. exf5 {[%emt 0:03:54]} Bxf5 {[%emt 0:00:12]} 10. g4 {[%emt 0:00:12]} Be6 {[%emt 0:14:24]} 11. Ng5 {[%emt 0:02:01]} Bg8 {[%emt 0:00:27]} 12. Nge4 {[%emt 0:01:11]} Qd7 {[%emt 0:04:54]} 13. a3 {[%emt 0:03:50]} Nxe4 {[%emt 0:01:08]} 14. Bxe4 {[%emt 0:00:08]} Be6 {[%emt 0:00:25]} 15. Be3 {[%emt 0:03:25]} O-O {[%emt 0:01:58]} 16. O-O {[%emt 0:00:30]} a6 {[%emt 0:05:30]} 17. Nd5 {[%emt 0:01:20]} Rae8 {[%emt 0:03:50]} 18. b4 {[%emt 0:13:21]} cxb4 {[%emt 0:01:19]} 19. axb4 {[%emt 0:00:01]} Bd8 {[%emt 0:00:24]} 20. Kg2 {[%emt 0:04:27]} Ne7 {[%emt 0:03:44]} 21. Nxe7+ {[%emt 0:02:22]} Bxe7 {[%emt 0:00:50]} 22. Ra5 {[%emt 0:08:23]} Bd8 {[%emt 0:02:22]} 23. Ra3 {[%emt 0:00:02]} d5 {[%emt 0:01:48]} 24. cxd5 {[%emt 0:00:06]} Bxd5 {[%emt 0:00:05]} 25. Qa4 {[%emt 0:02:40]} Bxe4+ {[%emt 0:06:02]} 26. dxe4 {[%emt 0:00:32]} Qf7 {[%emt 0:02:41]} 27. Bc5 {[%emt 0:02:45]} Be7 {[%emt 0:00:06]} 28. Qb3 {[%emt 0:00:06]} Bxc5 {[%emt 0:01:24]} 29. Qxf7+ {[%emt 0:00:30]} Rxf7 {[%emt 0:00:54]} 30. bxc5 {[%emt 0:00:02]} Rc8 {[%emt 0:00:21]} 31. Rc1 {[%emt 0:00:24]} Rfc7 {[%emt 0:01:41]} 32. Rb1 {[%emt 0:04:16]} Rd7 {[%emt 0:02:07]} 33. Rab3 {[%emt 0:00:21]} Rcc7 {[%emt 0:01:14]} 34. Rb6 {[%emt 0:03:19]} Kf7 {[%emt 0:00:07]} 35. Kf3 {[%emt 0:04:45]} Ke7 {[%emt 0:01:55]} 36. Ke3 {[%emt 0:00:17]} Rxc5 {[%emt 0:12:45]} 37. Rxb7 {[%emt 0:02:03]} Rxb7 {[%emt 0:01:14]} 38. Rxb7+ {[%emt 0:00:02]} Kf6 {[%emt 0:00:05]} 39. h4 {[%emt 0:03:15]} a5 {[%emt 0:01:13]} 40. f4 {[%emt 0:03:17]} exf4+ {[%emt 0:15:04]} 41. Kxf4 {[%emt 0:00:04]} h6 {[%emt 0:00:46]} 42. h5 {[%emt 0:12:58]} g5+ {[%emt 0:01:38]} 43. Ke3 {[%emt 0:02:42]} Ke5 {[%emt 0:01:52]} 44. Re7+ {[%emt 0:00:14]} Kf6 {[%emt 0:00:05]} 45. Re8 {[%emt 0:02:49]} a4 {[%emt 0:01:24]} 46. Rf8+ {[%emt 0:00:55]} Ke5 {[%emt 0:00:26]} 47. Rf5+ {[%emt 0:00:08]} Kd6 {[%emt 0:00:33]} 48. Kd4 {[%emt 0:00:04]} Rc1 {[%emt 0:01:17]} 49. Rf6+ {[%emt 0:00:14]} Ke7 {[%emt 0:00:12]} 50. Rxh6 {[%emt 0:01:37]} Rg1 {[%emt 0:00:02]} 51. Rh7+ {[%emt 0:02:24]} Kf8 {[%emt 0:02:31]} 52. Ra7 {[%emt 0:00:47]} Rxg4 {[%emt 0:00:06]} 53. Ke5 {[%emt 0:03:01]} Rh4 {[%emt 0:00:50]} 54. Kf6 {[%emt 0:00:37]} Rf4+ {[%emt 0:01:40]} 55. Kg6 {[%emt 0:00:02]} Rxe4 {[%emt 0:01:13]} 56. Ra8+ {[%emt 0:00:01]} Ke7 {[%emt 0:00:09]} 57. h6 {[%emt 0:00:04]} Rh4 {[%emt 0:00:57]} 58. h7 {[%emt 0:00:03]} Kd6 {[%emt 0:00:12]} 59. Ra5 {[%emt 0:01:13]} a3 {[%emt 0:00:53]} 60. Rxa3 {[%emt 0:01:24]} g4 {[%emt 0:00:01]} 61. Ra6+ {[%emt 0:02:03]} 1-0

[Event "28th Hit Open-A 2024"]
[Site "Nova Gorica"]
[Date "2024.01.27"]
[Round "3.8"]
[White "Ceres, Dragos"]
[Black "Ceschia, Ivano"]
[Result "1-0"]
[ECO "B30"]
[WhiteElo "2438"]
[BlackElo "2183"]
[Annotator "RC"]
[PlyCount "43"]
[EventDate "2024.01.22"]
[EventType "swiss"]
[EventCountry "SLO"]
[SourceTitle "playchess.com"]
[Source "ChessBase"]
[SourceQuality "1"]
[TimeControl "5400+30"]

1. e4 {[%emt 0:03:26]} c5 {[%emt 0:05:56]} 2. Nf3 {[%emt 0:00:10]} Nc6 {[%emt 0:00:08]} 3. Bb5 {[%emt 0:00:05]} e6 {[%emt 0:00:16]} 4. O-O {[%emt 0:00:08]} Nge7 {[%emt 0:00:07]} 5. Re1 {[%emt 0:00:07]} a6 {[%emt 0:03:23]} 6. Bf1 {[%emt 0:00:08]} g6 {[%emt 0:05:08]} 7. d4 {[%emt 0:00:34]} cxd4 {[%emt 0:00:14]} 8. Nxd4 {[%emt 0:00:14]} Bg7 {[%emt 0:01:10]} 9. Nxc6 {[%emt 0:00:07]} Nxc6 {[%emt 0:09:33]} 10. Nc3 {[%emt 0:00:06]} d6 {[%emt 0:05:06]} 11. Bf4 {[%emt 0:00:49]} Ne5 {[%emt 0:14:25]} 12. Qd2 {[%emt 0:00:26]} f6 {[%emt 0:00:55]} 13. Rad1 {[%emt 0:00:17]} Ke7 {[%emt 0:00:33]} 14. Bh6 {[%emt 0:10:07]} Rg8 {[%emt 0:20:50]} 15. Bxg7 {[%emt 0:00:25]} Rxg7 {[%emt 0:00:10]} 16. f4 {[%emt 0:00:21]} Nf7 {[%emt 0:08:41]} 17. Qe3 {[%emt 0:02:13]} Kf8 {[%emt 0:13:30]} 18. e5 {[%emt 0:00:42]} fxe5 {[%emt 0:00:15]} 19. fxe5 {[%emt 0:00:12]} d5 {[%emt 0:00:14]} 20. Ne4 {[%emt 0:00:56]} Qc7 {[%emt 0:02:40]} 21. Nf6 {[%emt 0:00:26]} Qxc2 {[%emt 0:00:39]} 22. Qa3+ {[%emt 0:00:13]} 1-0